[Event "North American U20 Girls 2019"]
[Site "Charlotte"]
[Date "2019.06.27"]
[Round "3.2"]
[White "Wu, Abbie"]
[Black "Zhu, Evelyn"]
[Result "0-1"]
[ECO "B43"]
[WhiteElo "1448"]
[BlackElo "2006"]
[Annotator "NA RC"]
[PlyCount "66"]
[EventDate "2019.06.27"]
[EventType "swiss"]
[EventCountry "USA"]
[SourceTitle "playchess.com"]
[Source "ChessBase"]
[SourceQuality "1"]
[TimeControl "5400+30"]

1. e4 {[%emt 1:30:30]} c5 {[%emt 1:30:30]} 2. Nf3 {[%emt 0:00:30]} e6 {[%emt 0:00:30]} 3. d4 {[%emt 0:00:30]} cxd4 {[%emt 0:00:30]} 4. Nxd4 {[%emt 0:00:30]} a6 {[%emt 0:00:30]} 5. Nc3 {[%emt 0:00:30]} Qc7 {[%emt 0:00:30]} 6. Be3 {[%emt 0:00:30]} Nf6 {[%emt 0:00:30]} 7. f3 {[%emt 0:00:30]} Bb4 {[%emt 0:00:30]} 8. Nde2 {[%emt 0:00:30]} b5 {[%emt 0:00:30]} 9. a3 {[%emt 0:00:30]} Be7 {[%emt 0:00:30]} 10. Qd2 {[%emt 0:00:30]} d6 {[%emt 0:00:30]} 11. Nd4 {[%emt 0:00:30]} Bb7 {[%emt 0:00:30]} 12. g4 {[%emt 0:00:30]} h6 {[%emt 0:00:30]} 13. h4 {[%emt 0:00:30]} d5 {[%emt 0:00:30]} 14. exd5 {[%emt 0:00:30]} Nxd5 {[%emt 0:00:30]} 15. Nxd5 {[%emt 0:00:30]} Bxd5 {[%emt 0:00:30]} 16. Kf2 {[%emt 0:00:30]} Nc6 {[%emt 0:00:30]} 17. Nxc6 {[%emt 0:00:30]} Qxc6 {[%emt 0:00:30]} 18. Be2 {[%emt 0:00:30]} Rd8 {[%emt 0:00:30]} 19. Qc1 {[%emt 0:00:30]} e5 {[%emt 0:00:30]} 20. Rh3 {[%emt 0:00:30]} Be6 {[%emt 0:00:30]} 21. Bd3 {[%emt 0:00:30]} h5 {[%emt 0:00:30]} 22. Be4 {[%emt 0:00:30]} Qc8 {[%emt 0:00:30]} 23. Qh1 {[%emt 0:00:30]} hxg4 {[%emt 0:00:30]} 24. fxg4 {[%emt 0:00:30]} Bxg4 {[%emt 0:00:30]} 25. Rh2 {[%emt 0:00:30]} Rd6 {[%emt 0:00:30]} 26. Rc1 {[%emt 0:00:30]} f5 {[%emt 0:00:30]} 27. Bb7 {[%emt 0:00:30]} Qc4 {[%emt 0:00:30]} 28. Kg1 {[%emt 0:00:30]} Rg6 {[%emt 0:00:30]} 29. Bg2 {[%emt 0:00:30]} f4 {[%emt 0:00:30]} 30. Bf2 {[%emt 0:00:30]} f3 {[%emt 0:00:30]} 31. Bf1 {[%emt 0:00:30]} Bh3+ {[%emt 0:00:30]} 32. Rg2 {[%emt 0:00:30]} fxg2 {[%emt 0:00:30]} 33. Qxh3 {[%emt 0:00:30]} gxf1=Q+ {[%emt 0:00:30]} 0-1

[Event "North American U20 Girls 2019"]
[Site "Charlotte"]
[Date "2019.06.27"]
[Round "3.3"]
[White "Ehsani, Yassamin"]
[Black "Dommalapati, Aasa"]
[Result "1-0"]
[ECO "E81"]
[WhiteElo "1866"]
[BlackElo "1691"]
[Annotator "NA RC"]
[PlyCount "75"]
[EventDate "2019.06.27"]
[EventType "swiss"]
[EventCountry "USA"]
[SourceTitle "playchess.com"]
[Source "ChessBase"]
[SourceQuality "1"]
[TimeControl "5400+30"]

1. d4 {[%emt 1:30:30]} Nf6 {[%emt 1:30:30]} 2. c4 {[%emt 0:00:30]} g6 {[%emt 0:00:30]} 3. Nc3 {[%emt 0:00:30]} Bg7 {[%emt 0:00:30]} 4. e4 {[%emt 0:00:30]} d6 {[%emt 0:00:30]} 5. Nge2 {[%emt 0:00:30]} O-O {[%emt 0:00:30]} 6. f3 {[%emt 0:00:30]} Nbd7 {[%emt 0:00:30]} 7. Ng3 {[%emt 0:00:30]} h5 {[%emt 0:00:30]} 8. Be2 {[%emt 0:00:30]} c5 {[%emt 0:00:30]} 9. d5 {[%emt 0:00:30]} Ne5 {[%emt 0:00:30]} 10. O-O {[%emt 0:00:30]} a6 {[%emt 0:00:30]} 11. a4 {[%emt 0:00:30]} Rb8 {[%emt 0:00:30]} 12. Be3 {[%emt 0:00:30]} Ne8 {[%emt 0:00:30]} 13. Qd2 {[%emt 0:00:30]} Kh7 {[%emt 0:00:30]} 14. h3 {[%emt 0:00:30]} h4 {[%emt 0:00:30]} 15. Nh1 {[%emt 0:00:30]} f5 {[%emt 0:00:30]} 16. Bg5 {[%emt 0:00:30]} Bf6 {[%emt 0:00:30]} 17. Bxf6 {[%emt 0:00:30]} exf6 {[%emt 0:00:30]} 18. exf5 {[%emt 0:00:30]} Bxf5 {[%emt 0:00:30]} 19. Qf4 {[%emt 0:00:30]} Nd3 {[%emt 0:00:30]} 20. Qxh4+ {[%emt 0:00:30]} Kg7 {[%emt 0:00:30]} 21. Ng3 {[%emt 0:00:30]} Qd7 {[%emt 0:00:30]} 22. Nxf5+ {[%emt 0:00:30]} Qxf5 {[%emt 0:00:30]} 23. Bxd3 {[%emt 0:00:30]} Qxd3 {[%emt 0:00:30]} 24. Qe4 {[%emt 0:00:30]} Qxe4 {[%emt 0:00:30]} 25. Nxe4 {[%emt 0:00:30]} b5 {[%emt 0:00:30]} 26. axb5 {[%emt 0:00:30]} axb5 {[%emt 0:00:30]} 27. b3 {[%emt 0:00:30]} bxc4 {[%emt 0:00:30]} 28. bxc4 {[%emt 0:00:30]} f5 {[%emt 0:00:30]} 29. Ng5 {[%emt 0:00:30]} Nc7 {[%emt 0:00:30]} 30. Ra7 {[%emt 0:00:30]} Kh6 {[%emt 0:00:30]} 31. f4 {[%emt 0:00:30]} Rbc8 {[%emt 0:00:30]} 32. Re1 {[%emt 0:00:30]} Rg8 {[%emt 0:00:30]} 33. Re7 {[%emt 0:00:30]} Rg7 {[%emt 0:00:30]} 34. Rxg7 {[%emt 0:00:30]} Kxg7 {[%emt 0:00:30]} 35. Rxc7+ {[%emt 0:00:30]} Rxc7 {[%emt 0:00:30]} 36. Ne6+ {[%emt 0:00:30]} Kf6 {[%emt 0:00:30]} 37. Nxc7 {[%emt 0:00:30]} Ke7 {[%emt 0:00:30]} 38. g4 {[%emt 0:00:30]} 1-0

[Event "North American U20 Girls 2019"]
[Site "Charlotte"]
[Date "2019.06.27"]
[Round "3.5"]
[White "Chin, Angelica"]
[Black "Arnold, Peishanika"]
[Result "1-0"]
[ECO "B92"]
[WhiteElo "1937"]
[BlackElo "1763"]
[Annotator "NA RC"]
[PlyCount "87"]
[EventDate "2019.06.27"]
[EventType "swiss"]
[EventCountry "USA"]
[SourceTitle "playchess.com"]
[Source "ChessBase"]
[SourceQuality "1"]
[TimeControl "5400+30"]

1. e4 {[%emt 1:30:30]} c5 {[%emt 1:30:30]} 2. Nf3 {[%emt 0:00:30]} d6 {[%emt 0:00:30]} 3. d4 {[%emt 0:00:30]} cxd4 {[%emt 0:00:30]} 4. Nxd4 {[%emt 0:00:30]} Nf6 {[%emt 0:00:30]} 5. Nc3 {[%emt 0:00:30]} a6 {[%emt 0:00:30]} 6. Be2 {[%emt 0:00:30]} e5 {[%emt 0:00:30]} 7. Nb3 {[%emt 0:00:30]} Be7 {[%emt 0:00:30]} 8. O-O {[%emt 0:00:30]} Be6 {[%emt 0:00:30]} 9. Kh1 {[%emt 0:00:30]} O-O {[%emt 0:00:30]} 10. f4 {[%emt 0:00:30]} exf4 {[%emt 0:00:30]} 11. Bxf4 {[%emt 0:00:30]} Nc6 {[%emt 0:00:30]} 12. Qe1 {[%emt 0:00:30]} Qe8 {[%emt 0:00:30]} 13. Qg3 {[%emt 0:00:30]} Ne5 {[%emt 0:00:30]} 14. Nd4 {[%emt 0:00:30]} Qd7 {[%emt 0:00:30]} 15. Rad1 {[%emt 0:00:30]} Ng6 {[%emt 0:00:30]} 16. Bg5 {[%emt 0:00:30]} Ne8 {[%emt 0:00:30]} 17. Nf5 {[%emt 0:00:30]} Bxg5 {[%emt 0:00:30]} 18. Qxg5 {[%emt 0:00:30]} Rd8 {[%emt 0:00:30]} 19. Rf3 {[%emt 0:00:30]} f6 {[%emt 0:00:30]} 20. Qh5 {[%emt 0:00:30]} Ne5 {[%emt 0:00:30]} 21. Rg3 {[%emt 0:00:30]} Kh8 {[%emt 0:00:30]} 22. Nd5 {[%emt 0:00:30]} Bxd5 {[%emt 0:00:30]} 23. Rxd5 {[%emt 0:00:30]} g6 {[%emt 0:00:30]} 24. Qh6 {[%emt 0:00:30]} Rg8 {[%emt 0:00:30]} 25. Nh4 {[%emt 0:00:30]} Nc7 {[%emt 0:00:30]} 26. Rd1 {[%emt 0:00:30]} Ne6 {[%emt 0:00:30]} 27. Nf3 {[%emt 0:00:30]} Rdf8 {[%emt 0:00:30]} 28. Nxe5 {[%emt 0:00:30]} fxe5 {[%emt 0:00:30]} 29. Bc4 {[%emt 0:00:30]} Rf6 {[%emt 0:00:30]} 30. c3 {[%emt 0:00:30]} Rgf8 {[%emt 0:00:30]} 31. h3 {[%emt 0:00:30]} Nc5 {[%emt 0:00:30]} 32. Qe3 {[%emt 0:00:30]} Qe7 {[%emt 0:00:30]} 33. b4 {[%emt 0:00:30]} Ne6 {[%emt 0:00:30]} 34. Bxe6 {[%emt 0:00:30]} Qxe6 {[%emt 0:00:30]} 35. Qd2 {[%emt 0:00:30]} b5 {[%emt 0:00:30]} 36. Rd3 {[%emt 0:00:30]} Rf2 {[%emt 0:00:30]} 37. Qh6 {[%emt 0:00:30]} Rf1+ {[%emt 0:00:30]} 38. Kh2 {[%emt 0:00:30]} R1f2 {[%emt 0:00:30]} 39. Rxd6 {[%emt 0:00:30]} Qxa2 {[%emt 0:00:30]} 40. R1d2 {[%emt 0:00:30]} Qf7 {[%emt 0:00:30]} 41. Rxf2 {[%emt 0:00:30]} Qxf2 {[%emt 0:00:30]} 42. Rxg6 {[%emt 0:00:30]} Qf7 {[%emt 0:00:30]} 43. Rxa6 {[%emt 0:00:30]} Qe7 {[%emt 0:00:30]} 44. Ra7 {[%emt 0:00:30]} 1-0

[Event "North American U20 Girls 2019"]
[Site "Charlotte"]
[Date "2019.06.28"]
[Round "4.1"]
[White "Ehsani, Yassamin"]
[Black "Yip, Carissa"]
[Result "0-1"]
[ECO "A65"]
[WhiteElo "1866"]
[BlackElo "2276"]
[Annotator "RC"]
[PlyCount "67"]
[EventDate "2019.06.27"]
[EventType "swiss"]
[EventCountry "USA"]
[SourceTitle "playchess.com"]
[Source "ChessBase"]
[SourceQuality "1"]
[TimeControl "5400+30"]

1. d4 {[%emt 1:30:30]} Nf6 {[%emt 1:30:30]} 2. c4 {[%emt 0:00:30]} g6 {[%emt 0:00:30]} 3. Nc3 {[%emt 0:00:30]} Bg7 {[%emt 0:00:30]} 4. e4 {[%emt 0:00:30]} d6 {[%emt 0:00:30]} 5. Nge2 {[%emt 0:00:30]} O-O {[%emt 0:00:30]} 6. f3 {[%emt 0:00:30]} c5 {[%emt 0:00:30]} 7. d5 {[%emt 0:00:30]} e6 {[%emt 0:00:30]} 8. Ng3 {[%emt 0:00:30]} exd5 {[%emt 0:00:30]} 9. cxd5 {[%emt 0:00:30]} a6 {[%emt 0:00:30]} 10. a4 {[%emt 0:00:30]} Nbd7 {[%emt 0:00:30]} 11. Be2 {[%emt 0:00:30]} h5 {[%emt 0:00:30]} 12. O-O {[%emt 0:00:30]} Nh7 {[%emt 0:00:30]} 13. Be3 {[%emt 0:00:30]} Ne5 {[%emt 0:00:30]} 14. Qd2 {[%emt 0:00:30]} h4 {[%emt 0:00:30]} 15. Nh1 {[%emt 0:00:30]} f5 {[%emt 0:00:30]} 16. Nf2 {[%emt 0:00:30]} Bd7 {[%emt 0:00:30]} 17. Rae1 {[%emt 0:00:30]} Qb6 {[%emt 0:00:30]} 18. f4 {[%emt 0:00:30]} Nf7 {[%emt 0:00:30]} 19. Kh1 {[%emt 0:00:30]} Rae8 {[%emt 0:00:30]} 20. e5 {[%emt 0:00:30]} dxe5 {[%emt 0:00:30]} 21. Nd3 {[%emt 0:00:30]} Rc8 {[%emt 0:00:30]} 22. b4 {[%emt 0:00:30]} e4 {[%emt 0:00:30]} 23. Nxc5 {[%emt 0:00:30]} Qxb4 {[%emt 0:00:30]} 24. N3xe4 {[%emt 0:00:30]} Qxd2 {[%emt 0:00:30]} 25. Nxd2 {[%emt 0:00:30]} Rfe8 {[%emt 0:00:30]} 26. Nxd7 {[%emt 0:00:30]} Rxe3 {[%emt 0:00:30]} 27. Nc4 {[%emt 0:00:30]} Rxe2 {[%emt 0:00:30]} 28. Rxe2 {[%emt 0:00:30]} Rxc4 29. Ne5 {[%emt 0:00:30]} Rxa4 {[%emt 0:01:00]} 30. Nxg6 {[%emt 0:00:30]} Bf6 {[%emt 0:00:30]} 31. Ne7+ {[%emt 0:00:30]} Bxe7 {[%emt 0:00:30]} 32. Rxe7 {[%emt 0:00:30]} b5 {[%emt 0:00:30]} 33. h3 {[%emt 0:00:30]} Nf6 {[%emt 0:00:30]} 34. d6 {[%emt 0:00:30]} 0-1

[Event "North American U20 Girls 2019"]
[Site "Charlotte"]
[Date "2019.06.28"]
[Round "4.2"]
[White "Zhu, Evelyn"]
[Black "Zeng, Sheena"]
[Result "1/2-1/2"]
[ECO "E34"]
[WhiteElo "2006"]
[BlackElo "1964"]
[Annotator "NA RC"]
[PlyCount "41"]
[EventDate "2019.06.27"]
[EventType "swiss"]
[EventCountry "USA"]
[SourceTitle "playchess.com"]
[Source "ChessBase"]
[SourceQuality "1"]
[TimeControl "5400+30"]

{[%evp 20,41,-16,-21,21,32767,32767,32767,32767,32767,32767,32767,29,0,37,0,36,0,32767,0,0,-14,0,-10]} 1. d4 {[%emt 1:30:30]} Nf6 {[%emt 1:30:30]} 2. c4 {[%emt 0:00:30]} e6 {[%emt 0:00:30]} 3. Nc3 {[%emt 0:00:30]} Bb4 {[%emt 0:00:30]} 4. Qc2 {[%emt 0:00:30]} d5 {[%emt 0:00:30]} 5. cxd5 {[%emt 0:00:30]} Qxd5 {[%emt 0:00:30]} 6. e3 {[%emt 0:00:30]} c5 {[%emt 0:00:30]} 7. Bd2 {[%emt 0:00:30]} Bxc3 {[%emt 0:00:30]} 8. bxc3 {[%emt 0:00:30]} Nc6 {[%emt 0:00:30]} 9. Nf3 {[%emt 0:00:30]} O-O {[%emt 0:00:30] E34: Nimzo-Indian: Classical: 4...d5} 10. Bd3 {[%emt 0:00:30]} (10. c4 Qd6 11. Bc3 cxd4 12. exd4 b6 13. Be2 Bb7 14. O-O Rac8 15. Rfd1 Ne7 16. Qb3 {0-1 (83) Riazantsev,A (2654)-Harikrishna,P (2737) Geneva 2017}) 10... c4 {[%emt 0:00:30]} 11. Be2 {[%emt 0:00:30]} Rb8 $146 {[%emt 0:00:30]} ({Predecessor:} 11... e5 12. dxe5 Nxe5 13. Nxe5 Qxe5 14. O-O Bf5 {0-1 (40) Flohr,S-Colle,E Bled 1931}) 12. Bc1 {[%emt 0:00:30]} b5 {[%emt 0:00:30]} 13. Ba3 {[%emt 0:00:30]} Re8 {[%emt 0:00:30]} 14. O-O {[%emt 0:00:30]} Bb7 {[%emt 0:00:30]} 15. Rfd1 {[%emt 0:00:30]} Ne7 {[%emt 0:00:30]} 16. Ne1 {[%emt 0:00:30]} Ng6 {[%emt 0:00:30]} 17. Bf3 {[%emt 0:00:30]} Qd7 {[%emt 0:00:30]} 18. Rab1 {[%emt 0:00:30]} a6 {[%emt 0:00:30]} 19. Bxb7 {[%emt 0:00:30]} Qxb7 {[%emt 0:00:30]} 20. Nf3 {[%emt 0:00:30]} Qe4 {[%emt 0:00:30]} 21. Qxe4 $11 {[%emt 0:00:30]} 1/2-1/2

[Event "North American U20 Girls 2019"]
[Site "Charlotte"]
[Date "2019.06.28"]
[Round "4.3"]
[White "Morris-Suzuki, Sophie"]
[Black "Wu, Abbie"]
[Result "0-1"]
[ECO "B52"]
[WhiteElo "1945"]
[BlackElo "1448"]
[Annotator "NA RC"]
[PlyCount "116"]
[EventDate "2019.06.27"]
[EventType "swiss"]
[EventCountry "USA"]
[SourceTitle "playchess.com"]
[Source "ChessBase"]
[SourceQuality "1"]
[TimeControl "5400+30"]

1. e4 {[%emt 1:30:30]} c5 {[%emt 1:30:30]} 2. Nf3 {[%emt 0:00:30]} d6 {[%emt 0:00:30]} 3. Bb5+ {[%emt 0:00:30]} Bd7 {[%emt 0:00:30]} 4. Bxd7+ {[%emt 0:00:30]} Qxd7 {[%emt 0:00:30]} 5. O-O {[%emt 0:00:30]} Nf6 {[%emt 0:00:30]} 6. e5 {[%emt 0:00:30]} dxe5 {[%emt 0:00:30] B52: Sicilian: Moscow Variation with 3...Bd7} 7. Nxe5 {[%emt 0:00:30]} Qf5 {[%emt 0:00:30]} (7... Qc8 8. Qf3 e6 9. b3 Be7 10. Bb2 Nbd7 11. Nc4 O-O 12. Nc3 Qc7 13. a4 Rad8 14. Rfe1 a6 15. a5 Nb8 {1-0 (97) Nakamura,H (2764)-Gelfand,B (2748) Tashkent 2014}) 8. Re1 {[%emt 0:00:30]} Nfd7 {[%emt 0:00:30]} 9. d4 $146 {[%emt 0:00:30]} ({Predecessor:} 9. Nxd7 Qxd7 10. b3 Nc6 11. Bb2 Nd4 12. Nc3 e6 13. Ne2 Be7 14. Nxd4 cxd4 {0-1 (51) De Boer,G-Van der Wiel,J Rotterdam 1977}) 9... cxd4 {[%emt 0:00:30]} 10. Qxd4 {[%emt 0:00:30]} Nxe5 {[%emt 0:00:30]} 11. Qxe5 {[%emt 0:00:30]} ({Don't play} 11. Rxe5 Nc6 $17 {[%mdl 64] Double Attack}) 11... Qxe5 {[%emt 0:00:30]} 12. Rxe5 {[%emt 0:00:30]} Nc6 {[%emt 0:00:30]} 13. Re1 {[%emt 0:00:30]} Nd4 {[%emt 0:00:30]} 14. Na3 {[%emt 0:00:30]} e6 {[%emt 0:00:30]} 15. Be3 {[%emt 0:00:30]} Nf5 {[%emt 0:00:30]} 16. Nb5 {[%emt 0:00:30]} Nxe3 {[%emt 0:00:30]} 17. Nc7+ {[%emt 0:00:30] [#]} (17. fxe3 $11 {remains equal.} Ke7 18. Kf2) 17... Ke7 {[%emt 0:00:30]} (17... Kd7 $1 $17 18. Nxa8 Nf5) 18. Rxe3 {[%emt 0:00:30]} Rd8 {[%emt 0:00:30]} 19. Nb5 {[%emt 0:00:30]} a6 {[%emt 0:00:30]} 20. Nc3 {[%emt 0:00:30]} g6 {[%emt 0:00:30]} 21. Ne4 {[%emt 0:00:30]} Bg7 {[%emt 0:00:30]} 22. Rb3 {[%emt 0:00:30]} b5 {[%emt 0:00:30]} 23. a4 {[%emt 0:00:30]} Rd4 {[%emt 0:00:30]} 24. Nc5 {[%emt 0:00:30]} Rhd8 {[%emt 0:00:30]} 25. Kf1 {[%emt 0:00:30] [#]} (25. g3 $15) 25... bxa4 {[%emt 0:00:30]} ({Black should play} 25... Rc4 $1 $17 {[%cal Rc4c5]} 26. axb5 Rxc5 27. bxa6 Rc7) 26. Nxa4 {[%emt 0:00:30]} Rd2 {[%emt 0:00:30]} 27. Rb7+ {[%emt 0:00:30] [#]} Kf8 {[%emt 0:00:30]} (27... R8d7 $1 $17 {[%cal Rd7b7]} 28. Rxd7+ Kxd7) 28. Rc7 $2 {[%emt 0:00:30]} (28. c3 $11 {and White is okay.}) 28... Bd4 {[%emt 0:00:30]} 29. Ra3 {[%emt 0:00:30]} Rxf2+ {[%emt 0:00:30]} 30. Ke1 {[%emt 0:00:30]} Rf5 {[%emt 0:00:30]} 31. Rc6 {[%emt 0:00:30]} Bg1 {[%emt 0:00:30]} 32. g4 {[%emt 0:00:30]} Re5+ {[%emt 0:00:30]} 33. Kf1 {[%emt 0:00:30]} Rd1+ {[%emt 0:00:30]} 34. Kg2 {[%emt 0:00:30]} Re2+ {[%emt 0:00:30]} 35. Kf3 {[%emt 0:00:30]} Rf2+ {[%emt 0:00:30]} 36. Kg3 {[%emt 0:00:30]} Rdd2 {[%emt 0:00:30]} 37. Rf3 {[%emt 0:00:30]} Bxh2+ {[%emt 0:00:30]} 38. Kh4 {[%emt 0:00:30]} Rxf3 {[%emt 0:00:30]} 39. c4 {[%emt 0:00:30]} g5+ {[%emt 0:00:30]} 40. Kxg5 {[%emt 0:00:30]} Bf4+ {[%emt 0:00:30]} 41. Kf6 {[%emt 0:00:30]} Bh6+ {[%emt 0:00:30]} 42. Ke5 {[%emt 0:00:30]} Bg7+ {[%emt 0:00:30]} 43. Ke4 {[%emt 0:00:30]} Rfd3 {[%emt 0:00:30]} 44. Nc5 {[%emt 0:00:30]} Rd4+ {[%emt 0:00:30]} 45. Ke3 {[%emt 0:00:30]} Bh6+ {[%emt 0:00:30]} 46. Kf3 {[%emt 0:00:30]} Rd6 {[%emt 0:00:30]} 47. Rc8+ {[%emt 0:00:30]} Kg7 {[%emt 0:00:30]} 48. g5 {[%emt 0:00:30]} Bxg5 {[%emt 0:00:30]} 49. Kg4 {[%emt 0:00:30]} R6d4+ {[%emt 0:00:30]} 50. Kf3 {[%emt 0:00:30]} Rxb2 {[%emt 0:00:30]} 51. Rc7 {[%emt 0:00:30]} Kg6 {[%emt 0:00:30]} 52. Rc8 {[%emt 0:00:30]} Rxc4 {[%emt 0:00:30]} 53. Rg8+ {[%emt 0:00:30]} Kh6 {[%emt 0:00:30]} 54. Nd3 {[%emt 0:00:30]} Rb3 {[%emt 0:00:30]} 55. Ke2 {[%emt 0:00:30]} Rc2+ {[%emt 0:00:30]} 56. Kd1 {[%emt 0:00:30]} Rd2+ {[%emt 0:00:30]} 57. Ke1 {[%emt 0:00:30]} Rb1+ {[%emt 0:00:30]} 58. Nc1 {[%emt 0:00:30]} Rxc1# {[%emt 0:00:30]} 0-1

[Event "North American U20 Girls 2019"]
[Site "Charlotte"]
[Date "2019.06.28"]
[Round "4.4"]
[White "Cui, Cynthia"]
[Black "Chin, Angelica"]
[Result "0-1"]
[ECO "D31"]
[WhiteElo "1775"]
[BlackElo "1937"]
[Annotator "NA RC"]
[PlyCount "136"]
[EventDate "2019.06.27"]
[EventType "swiss"]
[EventCountry "USA"]
[SourceTitle "playchess.com"]
[Source "ChessBase"]
[SourceQuality "1"]
[TimeControl "5400+30"]

1. c4 {[%emt 1:30:30]} e6 {[%emt 1:30:30]} 2. Nc3 {[%emt 0:00:30]} d5 {[%emt 0:00:30]} 3. d4 {[%emt 0:00:30]} Be7 {[%emt 0:00:30]} 4. cxd5 {[%emt 0:00:30]} exd5 {[%emt 0:00:30]} 5. Bf4 {[%emt 0:00:30]} c6 {[%emt 0:00:30]} 6. e3 {[%emt 0:00:30]} Bd6 {[%emt 0:00:30]} 7. Bxd6 {[%emt 0:00:30]} Qxd6 {[%emt 0:00:30]} 8. Bd3 {[%emt 0:00:30]} Ne7 {[%emt 0:00:30] D31: Queen's Gambit Declined: Semi-Slav without ...Nf6 (+ Marshall Gambit and Noteboom) and Exchange Variation lines without ...Nf6} 9. Qc2 {[%emt 0:00:30]} b6 {[%emt 0:00:30]} 10. Nf3 {[%emt 0:00:30]} Ba6 {[%emt 0:00:30]} 11. O-O {[%emt 0:00:30]} Bxd3 {[%emt 0:00:30]} 12. Qxd3 {[%emt 0:00:30]} O-O {[%emt 0:00:30]} 13. Rab1 {[%emt 0:00:30]} (13. e4 Nd7 14. Rfe1 Rfe8 {0-1 (27) Nakamura,H (2780)-Topalov,V (2749) Saint Louis 2017}) 13... Nd7 {[%emt 0:00:30]} 14. b4 {[%emt 0:00:30]} Nf6 $146 {[%emt 0:00:30]} ({Predecessor:} 14... a6 15. a3 a5 16. bxa5 Rxa5 {0-1 (31) Ott,F (2345)-Slobodjan,R (2460) Germany 2017}) 15. Rfc1 {[%emt 0:00:30]} Rfe8 {[%emt 0:00:30]} 16. Ne5 {[%emt 0:00:30]} Nd7 {[%emt 0:00:30]} 17. Nxd7 {[%emt 0:00:30]} Qxd7 {[%emt 0:00:30]} 18. Ne2 {[%emt 0:00:30]} Rac8 {[%emt 0:00:30]} 19. a4 {[%emt 0:00:30]} Nf5 {[%emt 0:00:30]} 20. Nf4 {[%emt 0:00:30]} Nd6 {[%emt 0:00:30]} 21. b5 {[%emt 0:00:30]} cxb5 {[%emt 0:00:30]} 22. axb5 {[%emt 0:00:30]} Nxb5 {[%emt 0:00:30]} 23. h3 {[%emt 0:00:30]} Nc7 {[%emt 0:00:30]} 24. Qa3 {[%emt 0:00:30]} Ne6 {[%emt 0:00:30]} 25. Nd3 {[%emt 0:00:30]} Nf8 {[%emt 0:00:30]} 26. Qa6 {[%emt 0:00:30]} Rc7 {[%emt 0:00:30]} (26... Ng6 $15) 27. Rxc7 $1 {[%emt 0:00:30]} Qxc7 {[%emt 0:00:30]} 28. Rc1 {[%emt 0:00:30]} Qe7 {[%emt 0:00:30]} 29. Ra1 {[%emt 0:00:30]} Ra8 {[%emt 0:00:30]} 30. Nf4 {[%emt 0:00:30]} Qd7 {[%emt 0:00:30]} 31. Qa2 {[%emt 0:00:30]} a5 {[%emt 0:00:30]} 32. Qxd5 {[%emt 0:00:30]} Qxd5 {[%emt 0:00:30]} (32... Ra7 $11) 33. Nxd5 {[%emt 0:00:30]} Nd7 {[%emt 0:00:30]} 34. Nc3 {[%emt 0:00:30]} Rc8 {[%emt 0:00:30]} 35. Ra3 {[%emt 0:00:30]} Kf8 {[%emt 0:00:30]} 36. Kf1 {[%emt 0:00:30]} Ke7 {[%emt 0:00:30]} 37. Ke2 {[%emt 0:00:30]} Kd6 {[%emt 0:00:30]} 38. Nb5+ {[%emt 0:00:30]} Kd5 {[%emt 0:00:30]} 39. e4+ {[%emt 0:00:30]} Ke6 {[%emt 0:00:30]} 40. f4 {[%emt 0:00:30]} Rc2+ {[%emt 0:00:30]} 41. Kf3 {[%emt 0:00:30]} Rb2 {[%emt 0:00:30]} 42. d5+ {[%emt 0:00:30]} Ke7 {[%emt 0:00:30]} 43. Nd4 {[%emt 0:00:30]} Nc5 {[%emt 0:00:30]} 44. Rc3 {[%emt 0:00:30] [#]} a4 {[%emt 0:00:30]} (44... Rf2+ $1 $17 {[%mdl 512]} 45. Ke3 (45. Kxf2 Nxe4+) 45... Rxg2) 45. e5 {[%emt 0:00:30]} Kd7 {[%emt 0:00:30]} 46. f5 {[%emt 0:00:30]} Rb4 {[%emt 0:00:30]} 47. e6+ {[%emt 0:00:30]} Ke8 {[%emt 0:00:30]} 48. Ke3 {[%emt 0:00:30]} Rb1 {[%emt 0:00:30]} 49. Ke2 {[%emt 0:00:30]} Rb2+ {[%emt 0:00:30]} 50. Kf3 {[%emt 0:00:30]} Rd2 {[%emt 0:00:30]} 51. Nb5 {[%emt 0:00:30]} fxe6 {[%emt 0:00:30]} 52. dxe6 $11 {[%emt 0:00:30]} Ke7 {[%emt 0:00:30]} 53. Na3 {[%emt 0:00:30]} Rd5 {[%emt 0:00:30]} 54. g4 {[%emt 0:00:30]} g6 {[%emt 0:00:30]} 55. fxg6 {[%emt 0:00:30]} hxg6 {[%emt 0:00:30]} 56. Nc4 {[%emt 0:00:30]} b5 {[%emt 0:00:30]} 57. Ne3 {[%emt 0:00:30]} Re5 {[%emt 0:00:30]} 58. Kf4 {[%emt 0:00:30]} Kxe6 {[%emt 0:00:30]} 59. Nc2 {[%emt 0:00:30]} g5+ {[%emt 0:00:30]} 60. Kf3 {[%emt 0:00:30]} Nb3 {[%emt 0:00:30]} 61. Rd3 {[%emt 0:00:30]} Rd5 {[%emt 0:00:30]} 62. Re3+ {[%emt 0:00:30]} Kd6 {[%emt 0:00:30]} 63. Kg3 {[%emt 0:00:30]} Nd2 {[%emt 0:00:30]} 64. Ra3 {[%emt 0:00:30]} Nc4 {[%emt 0:00:30]} 65. Rf3 {[%emt 0:00:30]} Ne5 {[%emt 0:00:30]} 66. Nb4 {[%emt 0:00:30]} Nxf3 {[%emt 0:00:30]} 67. Nxd5 {[%emt 0:00:30]} Kxd5 {[%emt 0:00:30]} 68. Kxf3 {[%emt 0:00:30]} a3 {[%emt 0:00:30]} 0-1